fUSD/lending_fUSD_20240516
["ID","MTS","AMOUNT","RATE_DAILY","PERIOD"]
[327168809,1715871215402,153.69,8.219e-05,2]
[327168810,1715871409350,3846.31,9e-05,2]
[327168811,1715871409372,4000.0,9e-05,2]
[327168812,1715871409395,4000.0,9e-05,2]
[327168813,1715871409416,4000.0,9e-05,2]
[327168814,1715871409439,4000.0,9e-05,2]
[327168815,1715871409461,4000.0,9e-05,2]
[327168816,1715871409482,459.33015188,9e-05,2]
[327168817,1715871409505,4000.0,9e-05,2]
[327168818,1715871409527,1694.35984812,9e-05,2]
[327168824,1715871468646,179.83,9.969e-05,2]
[327168828,1715871505214,858.16,9.969e-05,2]
[327168835,1715871618060,192.0,9.935e-05,2]
[327168840,1715871721363,1075.65015188,9.9e-05,2]
[327168841,1715871721385,640.71084812,9.9e-05,2]
[327168842,1715871774535,156.06,8.219e-05,2]
[327168843,1715871777620,3203.22915188,9.9e-05,2]
[327168844,1715871777644,4000.0,9.9e-05,2]
[327168848,1715871826624,-4000.0,9.9e-05,2]
[327168849,1715871827437,-4000.0,9.9e-05,2]
[327168850,1715871828195,-4000.0,9.9e-05,2]
[327168851,1715871828973,-4000.0,9.9e-05,2]
[327168852,1715871829652,-4000.0,9.9e-05,2]
[327168853,1715871842612,-4000.0,9.899e-05,2]
[327168854,1715871843153,-4000.0,9.899e-05,2]
[327168855,1715871843730,-2353.96969963,9.899e-05,2]
[327168856,1715871843754,-1646.03030037,9.9e-05,2]
[327168857,1715871844310,-4000.0,9.9e-05,2]
[327168858,1715871844864,-4000.0,9.9e-05,2]
[327168859,1715871857508,-4000.0,9.9e-05,2]
[327168860,1715871858033,-4000.0,9.9e-05,2]
[327168861,1715871858574,-4000.0,9.9e-05,2]
[327168862,1715871859083,-4000.0,9.9e-05,2]
[327168863,1715871859638,-4000.0,9.9e-05,2]
[327168864,1715871884344,-155.0,9.899e-05,2]
[327168865,1715871884367,-3845.0,9.9e-05,2]
[327168866,1715871885516,-500.0,9.867e-05,2]
[327168867,1715871885540,-250.0,9.867e-05,2]
[327168868,1715871885563,-3250.0,9.9e-05,2]
[327168869,1715871886392,-4000.0,9.9e-05,2]
[327168870,1715871886639,-4000.0,9.9e-05,2]
[327168871,1715871887508,-4000.0,9.9e-05,2]
[327168951,1715872232659,-313.48100007,9.195e-05,2]
[327168954,1715872232671,-532.91899993,9.195e-05,2]
[327168957,1715872232682,-178.84,9.769e-05,2]
[327168960,1715872232691,-1577.17,9.797e-05,2]
[327168963,1715872232702,-158.32,9.806e-05,2]
[327168966,1715872232711,-1723.09,9.814e-05,2]
[327168968,1715872232722,-196.94,9.839e-05,2]
[327168969,1715872232731,-158.32,9.858e-05,2]
[327168970,1715872232741,-1788.03912655,9.899e-05,2]
[327168971,1715872232750,-7220.53,9.899e-05,2]
[327168972,1715872232759,-19406.43187352,9.9e-05,2]
[327168973,1715872233036,-9040.25006212,9.9e-05,2]
[327168974,1715872233047,-3281.15,9.9e-05,2]
[327168975,1715872233060,-480.55860352,9.9e-05,2]
[327168976,1715872233618,150.0,8.219e-05,2]
[327168977,1715872233642,6.06,8.219e-05,2]
[327168978,1715872233786,-5000.0,9.9e-05,2]
[327168979,1715872233797,-256.269,9.9e-05,2]
[327168980,1715872233809,-46292.18186719,9.9e-05,2]
[327168981,1715872233820,-2307.44308,9.9e-05,2]
[327168984,1715872239222,-656.61,9.9e-05,2]
[327168986,1715872239237,-1099.7743066,9.9e-05,2]
[327168988,1715872239739,-27277.05843832,9.9e-05,2]
[327168990,1715872239749,-155.0,9.9e-05,2]
[327168992,1715872239759,-299.88079029,9.9e-05,2]
[327168994,1715872239769,-300.0,9.9e-05,2]
[327168996,1715872239778,-5303.87302952,9.907e-05,2]
[327168998,1715872239789,-388.13533793,9.907e-05,2]
[327169000,1715872239801,-18207.99163255,9.907e-05,2]
[327169002,1715872239810,-158.32,9.909e-05,2]
[327169004,1715872239819,-250.0,9.912e-05,2]
[327169006,1715872239829,-158.32,9.96e-05,2]
[327169009,1715872239845,-327.77066928,0.0001,2]
[327169011,1715872239855,-804.43551989,0.0001,3]
[327169012,1715872239865,-19141.47,0.0001,2]
[327169013,1715872239874,-15104.704685,0.0001,2]
[327169014,1715872239884,-158.32,0.00010011,2]
[327169015,1715872239894,-158.32,0.00010062,2]
[327169016,1715872239904,-9847.92,0.00010113,2]
[327169017,1715872239913,-499.99,0.00010113,2]
[327169018,1715872239923,-158.32,0.00010113,2]
[327169019,1715872239932,-1295.26,0.00010147,2]
[327169020,1715872239945,-1798.85,0.00010147,2]
[327169021,1715872239955,-158.32,0.00010164,2]
[327169022,1715872239965,-158.32,0.00010215,2]
[327169023,1715872239978,-158.32,0.00010266,2]
[327169024,1715872239989,-158.32,0.00010317,2]
[327169025,1715872239999,-846.4,0.00010345,2]
[327169026,1715872240009,-200.0,0.000104,3]
[327169027,1715872240022,-6738.78,0.00010475,2]
[327169028,1715872240032,-4417.99,0.00010475,2]
[327169029,1715872240041,-32938.30832225,0.00010499,2]
[327169030,1715872240050,-24882.50974046,0.000105,2]
[327169031,1715872240063,-442.2,0.000105,2]
[327169032,1715872240074,-4675.29025954,0.000105,2]
[327169033,1715872240084,-226.09,0.000105,2]
[327169034,1715872240093,-500.0,0.000105,3]
[327169035,1715872240103,-300.0,0.00010548,2]
[327169036,1715872240113,-458.33936655,0.00010548,2]
[327169037,1715872240125,-272.97766749,0.00010548,2]
[327169038,1715872240136,-991.51296596,0.00010548,2]
[327169040,1715872240146,-800.0,0.000106,3]
[327169042,1715872240155,-1100.0,0.000107,3]
[327169044,1715872240165,-1400.0,0.000108,3]
[327169046,1715872240174,-1346.49755933,0.00010823,2]
[327169048,1715872240185,-217.62039247,0.00010823,2]
[327169050,1715872240194,-150.0,0.000109,2]
[327169052,1715872240204,-200.0,0.000109,3]
[327169053,1715872240213,-500.0,0.00010958,2]
[327169055,1715872240222,-575.24,0.00010958,2]
[327169057,1715872240232,-500.0,0.00010958,2]
[327169059,1715872240242,-500.0,0.00010958,2]
[327169061,1715872240251,-500.0,0.00010958,2]
[327169063,1715872240260,-500.0,0.00010958,2]
[327169065,1715872240270,-500.0,0.00010958,2]
[327169067,1715872240279,-500.0,0.00010958,2]
[327169069,1715872240289,-500.0,0.00010958,2]
[327169071,1715872240299,-500.0,0.00010958,2]
[327169073,1715872240308,-500.0,0.00010958,2]
[327169075,1715872240317,-76.79967416,0.00010958,2]
[327169077,1715872240329,-423.20032584,0.00010958,2]
[327169079,1715872240339,-500.0,0.00010958,2]
[327169081,1715872240348,-500.0,0.00010958,2]
[327169083,1715872240358,-500.0,0.00010958,2]
[327169085,1715872240368,-500.0,0.00010958,2]
[327169109,1715872240588,-500.0,0.00010958,2]
[327169112,1715872240614,-500.0,0.00010958,2]
[327169115,1715872240624,-500.0,0.00010958,2]
[327169118,1715872240633,-500.0,0.00010958,2]
[327169121,1715872240642,-500.0,0.00010958,2]
[327169123,1715872240651,-574.28,0.00010958,2]
[327169125,1715872240660,-500.0,0.00010958,2]
[327169126,1715872240669,-500.0,0.00010958,2]
[327169129,1715872240679,-500.0,0.00010958,2]
[327169131,1715872240690,-500.0,0.00010958,2]
[327169133,1715872240699,-500.0,0.00010958,2]
[327169134,1715872240708,-500.0,0.00010958,2]
[327169137,1715872240718,-500.0,0.00010958,2]
[327169138,1715872240729,-500.0,0.00010958,2]
[327169140,1715872240738,-500.0,0.00010958,2]
[327169142,1715872240748,-500.0,0.00010958,2]
[327169144,1715872240758,-500.0,0.00010958,2]
[327169147,1715872240768,-500.0,0.00010958,2]
[327169149,1715872240779,-617.73,0.00010958,2]
[327169151,1715872240788,-872.68,0.00010958,2]
[327169153,1715872240798,-500.0,0.00010958,2]
[327169154,1715872240807,-500.0,0.00010958,2]
[327169157,1715872240817,-536.42,0.00010958,2]
[327169159,1715872240826,-500.0,0.00010958,2]
[327169161,1715872240837,-500.0,0.00010958,2]
[327169162,1715872240846,-1505.85,0.00010958,2]
[327169164,1715872240856,-500.0,0.00010958,2]
[327169166,1715872240866,-500.0,0.00010958,2]
[327169168,1715872240876,-500.0,0.00010958,2]
[327169171,1715872240886,-500.0,0.00010958,2]
[327169173,1715872240895,-500.0,0.00010958,2]
[327169175,1715872240904,-500.0,0.00010958,2]
[327169176,1715872240914,-500.0,0.00010958,2]
[327169179,1715872240923,-500.0,0.00010958,2]
[327169180,1715872240932,-500.0,0.00010958,2]
[327169182,1715872240942,-1146.16,0.00010958,2]
[327169184,1715872240956,-500.0,0.00010958,2]
[327169186,1715872240965,-500.0,0.00010958,2]
[327169188,1715872240975,-500.0,0.00010958,2]
[327169190,1715872240986,-500.0,0.00010958,2]
[327169192,1715872240995,-500.16331915,0.00010958,2]
[327169194,1715872241005,-500.0,0.00010958,2]
[327169197,1715872241014,-500.0,0.00010958,2]
[327169200,1715872241024,-500.0,0.00010958,2]
[327169203,1715872241035,-500.0,0.00010958,2]
[327169206,1715872241045,-164.52,0.0001096,2]
[327169208,1715872241054,-1399.0,0.00010962,2]
[327169209,1715872241063,-1225.0,0.00010962,2]
[327169210,1715872241073,-544.0,0.00010962,2]
[327169212,1715872241082,-1261.0,0.00010962,2]
[327169214,1715872241091,-1790.0,0.00010962,2]
[327169216,1715872241100,-810.0,0.00010962,2]
[327169218,1715872241109,-164.0,0.00010962,2]
[327169220,1715872241120,-612.0,0.00010962,2]
[327169222,1715872241129,-439.0,0.00010962,2]
[327169224,1715872241138,-568.0,0.00010962,2]
[327169226,1715872241148,-809.38589384,0.00010962,2]
[327169232,1715872241197,-564.03600026,0.00010962,2]
[327169593,1715872244317,-977.5781059,0.00010962,2]
[327169596,1715872244327,-150.0,0.00010962,2]
[327169599,1715872244337,-1647.0,0.00010962,2]
[327169602,1715872244346,-150.0,0.00010962,2]
[327169605,1715872244355,-215.0,0.00010962,2]
[327169607,1715872244365,-445.0,0.00010962,2]
[327169610,1715872244374,-3158.0,0.00010962,2]
[327169612,1715872244383,-1138.0,0.00010962,2]
[327169615,1715872244393,-11199.464,0.00010962,2]
[327169618,1715872244402,-3220.7405181,0.00010962,2]
[327169621,1715872244413,-432.0,0.00010962,2]
[327169624,1715872244425,-361.32,0.00010962,2]
[327169628,1715872244436,-432.917,0.00010962,2]
[327169630,1715872244447,-310.0,0.00010962,2]
[327169633,1715872244459,-1156.0224819,0.00010962,2]
[327169636,1715872244469,-324.603,0.00010962,2]
[327169638,1715872244479,-230.98738846,0.00010969,2]
[327169640,1715872244490,-226.2429,0.00010978,2]
[327169641,1715872244499,-65.87417811,0.00010979,2]
[327169642,1715872244511,-99.89478608,0.00010979,2]
[327169644,1715872244521,-200.20871114,0.0001098,2]
[327169645,1715872244530,-13289.05194144,0.0001098,2]
[327169647,1715872244539,-152.39593782,0.0001098,2]
[327169648,1715872244548,-3239.25312289,0.0001098,2]
[327169649,1715872244558,-1000.0,0.00010991,2]
[327169650,1715872244567,-200.0,0.00011,2]
[327169651,1715872244576,-156.06,0.00011039,2]
[327169652,1715872244586,-25943.75044866,0.0001106,2]
[327169653,1715872244595,-155.0,0.00011073,2]
[327169654,1715872244605,-500.0,0.00011074,2]
[327169655,1715872244614,-500.0,0.00011074,2]
[327169656,1715872244623,-151.278,0.00011076,2]
[327169657,1715872244634,-150.0,0.00011076,2]
[327169658,1715872244643,-250.0,0.00011076,2]
[327169659,1715872244653,-250.0,0.00011076,2]
[327169660,1715872244662,-2159.0,0.00011076,2]
[327169661,1715872244671,-973.0,0.00011076,2]
[327169662,1715872244681,-2148.96051101,0.00011077,2]
[327169663,1715872244690,-282.33501335,0.00011077,2]
[327169664,1715872244700,-1851.03948899,0.00011077,2]
[327169665,1715872244709,-500.0,0.00011077,2]
[327169666,1715872244718,-500.0,0.00011077,2]
[327169667,1715872244728,-309.0511157,0.00011077,2]
[327169668,1715872244739,-8696.0238703,0.00011077,2]
[327169669,1715872244749,-796.7387127,0.00011077,2]
[327169670,1715872244758,-580.7960985,0.00011077,2]
[327169671,1715872244768,-350.72,0.00011077,2]
[327169672,1715872244777,-578.26,0.00011077,2]
[327169673,1715872244787,-500.0,0.00011077,2]
[327169675,1715872244796,-500.0,0.00011077,2]
[327169677,1715872244805,-327.97,0.00011077,2]
[327169679,1715872244815,-269.2,0.00011077,2]
[327169681,1715872244826,-469.23,0.00011077,2]
[327169683,1715872244835,-352.02,0.00011077,2]
[327169685,1715872244844,-872.68,0.00011077,2]
[327169687,1715872244853,-2994.1865055,0.00011077,2]
[327169689,1715872244862,-392.8,0.00011077,2]
[327169691,1715872244871,-1505.85,0.00011077,2]
[327169694,1715872244880,-500.0,0.00011077,2]
[327169696,1715872244889,-157.66029153,0.00011078,2]
[327169699,1715872244898,-817.82411991,0.00011078,2]
[327169702,1715872244908,-158.05181906,0.00011078,2]
[327169706,1715872244917,-712.5895165,0.00011078,2]
[327169710,1715872244927,-782.3604175,0.00011078,2]
[327169713,1715872244936,-789.2922901,0.00011078,2]
[327169716,1715872244946,-935.09682412,0.00011078,2]
[327169719,1715872244961,-176.5003404,0.00011078,2]
[327169721,1715872244970,-535.53037562,0.00011078,2]
[327169723,1715872244981,-155.0,0.00011078,2]
[327169725,1715872244993,-643.1326905,0.00011078,2]
[327169727,1715872245002,-217.27337615,0.00011078,2]
[327169729,1715872245011,-984.98639943,0.00011078,2]
[327169731,1715872245021,-155.0,0.00011078,2]
[327169733,1715872245032,-4299.66921066,0.00011078,2]
[327169735,1715872245041,-500.0,0.00011078,2]
[327169737,1715872245050,-500.0,0.00011078,2]
[327169739,1715872245060,-275.31528319,0.00011078,2]
[327169741,1715872245069,-500.0,0.00011078,2]
[327169743,1715872245078,-236.61849521,0.00011078,2]
[327169746,1715872245088,-500.0,0.00011078,2]
[327169748,1715872245097,-500.0,0.00011078,2]
[327169750,1715872245106,-500.0,0.00011078,2]
[327169752,1715872245115,-500.0,0.00011078,2]
[327169754,1715872245126,-500.0,0.00011078,2]
[327169756,1715872245135,-500.0,0.00011078,2]
[327169758,1715872245145,-500.0,0.00011078,2]
[327169760,1715872245155,-500.0,0.00011078,2]
[327169762,1715872245164,-500.0,0.00011078,2]
[327169764,1715872245174,-500.0,0.00011078,2]
[327169766,1715872245183,-500.0,0.00011078,2]
[327169768,1715872245192,-516.50703702,0.00011078,2]
[327169770,1715872245201,-500.0,0.00011078,2]
[327169772,1715872245211,-500.0,0.00011078,2]
[327169774,1715872245219,-500.0,0.00011078,2]
[327169776,1715872245228,-500.0,0.00011078,2]
[327169778,1715872245238,-500.0,0.00011078,2]
[327169780,1715872245247,-500.0,0.00011078,2]
[327169782,1715872245257,-500.0,0.00011078,2]
[327169784,1715872245266,-500.0,0.00011078,2]
[327169786,1715872245276,-500.0,0.00011078,2]
[327169788,1715872245286,-500.0,0.00011078,2]
[327169790,1715872245295,-500.0,0.00011078,2]
[327169792,1715872245304,-1380.16157324,0.00011078,2]
[327169794,1715872245313,-155.0,0.00011078,2]
[327169796,1715872245323,-500.0,0.00011078,2]
[327169798,1715872245333,-500.0,0.00011078,2]
[327169800,1715872245342,-500.0,0.00011078,2]
[327169802,1715872245351,-500.0,0.00011078,2]
[327169804,1715872245360,-500.0,0.00011078,2]
[327169806,1715872245370,-500.0,0.00011078,2]
[327169808,1715872245378,-500.0,0.00011078,2]
[327169810,1715872245387,-500.0,0.00011078,2]
[327169812,1715872245396,-500.0,0.00011078,2]
[327169814,1715872245406,-500.0,0.00011078,2]
[327169816,1715872245415,-500.0,0.00011078,2]
[327169818,1715872245424,-500.0,0.00011078,2]
[327169820,1715872245433,-636.18,0.00011078,2]
[327169822,1715872245443,-500.0,0.00011078,2]
[327169824,1715872245454,-500.0,0.00011078,2]
[327169826,1715872245463,-500.0,0.00011078,2]
[327169828,1715872245472,-500.0,0.00011078,2]
[327169830,1715872245481,-539.01402092,0.00011078,2]
[327169832,1715872245490,-500.0,0.00011078,2]
[327169834,1715872245500,-500.0,0.00011078,2]
[327169835,1715872245508,-500.0,0.00011078,2]
[327169837,1715872245518,-500.0,0.00011078,2]
[327169840,1715872245528,-500.0,0.00011078,2]
[327169842,1715872245537,-238.94420885,0.00011078,2]
[327169844,1715872245547,-500.0,0.00011078,2]
[327169845,1715872245556,-500.0,0.00011078,2]
[327169847,1715872245565,-500.0,0.00011078,2]
[327169849,1715872245574,-500.0,0.00011078,2]
[327169851,1715872245583,-500.0,0.00011078,2]
[327169853,1715872245592,-500.0,0.00011078,2]
[327169855,1715872245601,-500.0,0.00011078,2]
[327169857,1715872245611,-500.0,0.00011078,2]
[327169859,1715872245620,-500.0,0.00011078,2]
[327169861,1715872245629,-500.0,0.00011078,2]
[327169863,1715872245638,-500.0,0.00011078,2]
[327169865,1715872245647,-500.0,0.00011078,2]
[327169867,1715872245657,-500.0,0.00011078,2]
[327169869,1715872245666,-606.55,0.00011078,2]
[327169871,1715872245675,-500.0,0.00011078,2]
[327169873,1715872245684,-500.0,0.00011078,2]
[327169875,1715872245693,-500.0,0.00011078,2]
[327169877,1715872245703,-546.45,0.00011078,2]
[327169879,1715872245712,-500.0,0.00011078,2]
[327169881,1715872245722,-180.3,0.00011078,2]
[327169883,1715872245731,-219.16,0.00011078,2]
[327169885,1715872245741,-500.0,0.00011078,2]
[327169887,1715872245750,-500.0,0.00011078,2]
[327169889,1715872245759,-500.0,0.00011078,2]
[327169891,1715872245769,-500.0,0.00011078,2]
[327169893,1715872245778,-500.0,0.00011078,2]
[327169895,1715872245787,-500.0,0.00011078,2]
[327169897,1715872245797,-500.0,0.00011078,2]
[327169899,1715872245806,-500.0,0.00011078,2]
[327169901,1715872245815,-500.0,0.00011078,2]
[327169903,1715872245825,-53.37275318,0.00011078,2]
[327169925,1715872246023,-332.59159891,0.00011078,2]
[327169927,1715872246036,-114.03564791,0.00011078,2]
[327169929,1715872246046,-536.42,0.00011078,2]
[327169931,1715872246056,-284.05795791,0.00011078,2]
[327169935,1715872246086,-500.0,0.00010958,2]
[327169937,1715872246095,-36.912316,0.00011078,2]
[327169940,1715872246107,-179.02972609,0.00011078,2]
[327169942,1715872246116,-525.56,0.00011078,2]
[327169944,1715872246125,-500.0,0.00011078,2]
[327169946,1715872246134,-500.0,0.00011078,2]
[327169948,1715872246143,-500.0,0.00011078,2]
[327169950,1715872246153,-162.75297053,0.00011078,2]
[327169952,1715872246162,-500.0,0.00011078,2]
[327169954,1715872246171,-500.0,0.00011078,2]
[327169956,1715872246180,-632.45,0.00011078,2]
[327169958,1715872246189,-512.34499103,0.00011078,2]
[327169960,1715872246200,-500.0,0.00011078,2]
[327169962,1715872246211,-500.0,0.00011078,2]
[327169964,1715872246220,-739.06799592,0.00011078,2]
[327169966,1715872246232,-407.09200408,0.00011078,2]
[327169968,1715872246242,-500.0,0.00011078,2]
[327169970,1715872246251,-500.0,0.00011078,2]
[327169972,1715872246261,-500.0,0.00011078,2]
[327169974,1715872246271,-500.0,0.00011078,2]
[327169976,1715872246280,-245.2059709,0.00011079,2]
[327169978,1715872246290,-20000.0,0.00011079,2]
[327169980,1715872246299,-6082.24771913,0.00011079,2]
[327169982,1715872246311,-392.4809798,0.00011079,2]
[327169984,1715872246322,-6580.0,0.00011079,2]
[327169992,1715872246397,-4951.51200897,0.00011079,2]
[327169994,1715872246408,-2000.0,0.00011079,2]
[327169996,1715872246418,-200.0,0.00011079,2]
[327169998,1715872246427,-6150.72485826,0.00011079,2]
[327170000,1715872246439,-500.0,0.00011079,2]
[327170002,1715872246448,-500.0,0.00011079,2]
[327170005,1715872246460,-633.02,0.00011079,2]
[327170007,1715872246469,-500.0,0.00011079,2]
[327170008,1715872246481,-165.30463805,0.00011079,2]
[327170011,1715872246491,-500.0,0.00011079,2]
[327170013,1715872246502,-500.0,0.00011079,2]
[327170015,1715872246511,-500.0,0.00011079,2]
[327170017,1715872246521,-428.0,0.00011079,2]
[327170019,1715872246530,-217.9,0.00011079,2]
[327170021,1715872246539,-500.0,0.00011079,2]
[327170023,1715872246548,-500.0,0.00011079,2]
[327170025,1715872246558,-500.0,0.00011079,2]
[327170027,1715872246568,-500.0,0.00011079,2]
[327170029,1715872246577,-158.212849,0.00011079,2]
[327170031,1715872246587,-158.212849,0.00011079,2]
[327170033,1715872246596,-500.0,0.00011079,2]
[327170035,1715872246605,-406.24,0.00011079,2]
[327170037,1715872246615,-500.0,0.00011079,2]
[327170039,1715872246625,-500.0,0.00011079,2]
[327170040,1715872246634,-500.0,0.00011079,2]
[327170042,1715872246643,-500.0,0.00011079,2]
[327170043,1715872246652,-500.0,0.00011079,2]
[327170045,1715872246661,-237.07,0.00011079,2]
[327170046,1715872246670,-500.0,0.00011079,2]
[327170047,1715872246679,-500.0,0.00011079,2]
[327170048,1715872246688,-500.0,0.00011079,2]
[327170049,1715872246697,-500.0,0.00011079,2]
[327170050,1715872246706,-500.0,0.00011079,2]
[327170051,1715872246715,-500.0,0.00011079,2]
[327170052,1715872246724,-500.0,0.00011079,2]
[327170053,1715872246733,-500.0,0.00011079,2]
[327170054,1715872246742,-500.0,0.00011079,2]
[327170055,1715872246751,-500.0,0.00011079,2]
[327170056,1715872246760,-500.0,0.00011079,2]
[327170057,1715872246769,-500.0,0.00011079,2]
[327170058,1715872246778,-500.0,0.00011079,2]
[327170060,1715872246788,-500.0,0.00011079,2]
[327170062,1715872246797,-537.62,0.00011079,2]
[327170064,1715872246805,-500.0,0.00011079,2]
[327170066,1715872246814,-500.0,0.00011079,2]
[327170068,1715872246824,-500.0,0.00011079,2]
[327170070,1715872246833,-500.0,0.00011079,2]
[327170072,1715872246842,-500.0,0.00011079,2]
[327170074,1715872246851,-634.53,0.00011079,2]
[327170076,1715872246860,-151.0,0.00011079,2]
[327170078,1715872246870,-157.138071,0.00011079,2]
[327170080,1715872246879,-500.0,0.00011079,2]
[327170082,1715872246888,-500.0,0.00011079,2]
[327170084,1715872246897,-500.0,0.00011079,2]
[327170086,1715872246906,-157.138071,0.00011079,2]
[327170088,1715872246916,-500.0,0.00011079,2]
[327170090,1715872246925,-500.0,0.00011079,2]
[327170092,1715872246934,-500.0,0.00011079,2]
[327170094,1715872246944,-500.0,0.00011079,2]
[327170096,1715872246957,-500.0,0.00011079,2]
[327170098,1715872246966,-189.59,0.00011079,2]
[327170100,1715872246975,-500.0,0.00011079,2]
[327170102,1715872246985,-500.0,0.00011079,2]
[327170104,1715872246994,-500.0,0.00011079,2]
[327170106,1715872247003,-500.0,0.00011079,2]
[327170108,1715872247013,-502.62,0.00011079,2]
[327170110,1715872247022,-500.0,0.00011079,2]
[327170112,1715872247033,-500.0,0.00011079,2]
[327170114,1715872247042,-500.0,0.00011079,2]
[327170116,1715872247051,-500.0,0.00011079,2]
[327170118,1715872247060,-239.910348,0.00011079,2]
[327170120,1715872247069,-151.0,0.00011079,2]
[327170122,1715872247078,-500.0,0.00011079,2]
[327170124,1715872247087,-500.0,0.00011079,2]
[327170126,1715872247096,-435.80568036,0.00011079,2]
[327170128,1715872247105,-239.910348,0.00011079,2]
[327170130,1715872247114,-500.0,0.00011079,2]
[327170132,1715872247123,-500.0,0.00011079,2]
[327170134,1715872247133,-500.0,0.00011079,2]
[327170136,1715872247142,-182.35,0.00011079,2]
[327170138,1715872247153,-500.0,0.00011079,2]
[327170140,1715872247162,-500.0,0.00011079,2]
[327170142,1715872247171,-500.0,0.00011079,2]
[327170144,1715872247179,-500.0,0.00011079,2]
[327170146,1715872247188,-457.59,0.00011079,2]
[327170148,1715872247198,-420.22,0.00011079,2]
[327170150,1715872247207,-408.27,0.00011079,2]
[327170152,1715872247216,-156.758012,0.00011079,2]
[327170154,1715872247226,-151.0,0.00011079,2]
[327170156,1715872247235,-500.0,0.00011079,2]
[327170158,1715872247244,-500.0,0.00011079,2]
[327170160,1715872247253,-500.0,0.00011079,2]
[327170161,1715872247262,-500.0,0.00011079,2]
[327170163,1715872247272,-500.0,0.00011079,2]
[327170165,1715872247281,-500.0,0.00011079,2]
[327170167,1715872247290,-500.0,0.00011079,2]
[327170169,1715872247299,-500.0,0.00011079,2]
[327170190,1715872247490,-500.0,0.00011079,2]
[327170192,1715872247500,-500.0,0.00011079,2]
[327170194,1715872247510,-169.75,0.00011079,2]
[327170196,1715872247520,-500.0,0.00011079,2]
[327170198,1715872247529,-500.0,0.00011079,2]
[327170200,1715872247539,-500.0,0.00011079,2]
[327170202,1715872247548,-500.0,0.00011079,2]
[327170204,1715872247557,-500.0,0.00011079,2]
[327170206,1715872247567,-500.0,0.00011079,2]
[327170208,1715872247575,-500.0,0.00011079,2]
[327170210,1715872247585,-500.0,0.00011079,2]
[327170212,1715872247595,-500.0,0.00011079,2]
[327170214,1715872247604,-500.0,0.00011079,2]
[327170216,1715872247614,-500.0,0.00011079,2]
[327170218,1715872247623,-500.0,0.00011079,2]
[327170220,1715872247633,-500.0,0.00011079,2]
[327170222,1715872247643,-500.0,0.00011079,2]
[327170224,1715872247653,-502.24,0.00011079,2]
[327170226,1715872247662,-506.65427051,0.00011079,2]
[327170228,1715872247672,-500.0,0.00011079,2]
[327170230,1715872247681,-500.0,0.00011079,2]
[327170232,1715872247690,-500.0,0.00011079,2]
[327170234,1715872247699,-460.08,0.00011079,2]
[327170236,1715872247709,-500.0,0.00011079,2]
[327170238,1715872247720,-500.0,0.00011079,2]
[327170240,1715872247729,-500.0,0.00011079,2]
[327170242,1715872247740,-500.0,0.00011079,2]
[327170244,1715872247751,-500.0,0.00011079,2]
[327170246,1715872247760,-500.0,0.00011079,2]
[327170248,1715872247769,-572.16,0.00011079,2]